fUST/lending_fUST_20250810
["ID","MTS","AMOUNT","RATE_DAILY","PERIOD"]
[378201371,1754781043251,-206.74790849,0.00023014,2]
[378201372,1754781043261,-460.0,0.00023014,2]
[378201373,1754781043270,-540.56,0.00023014,2]
[378201374,1754781043279,-714.88,0.00023014,2]
[378201375,1754781043289,-460.0,0.00023014,2]
[378201376,1754781043298,-460.0,0.00023014,2]
[378201377,1754781043308,-160.0,0.00023021,2]
[378201378,1754781043317,-160.0,0.00023021,2]
[378201379,1754781043327,-216.61183532,0.00023021,2]
[378201380,1754781043336,-842.95011917,0.00023021,2]
[378201381,1754781043345,-231.92402426,0.00023021,2]
[378201382,1754781043355,-12666.14847857,0.00023021,2]
[378201383,1754781043364,-461.55179734,0.00023021,2]
[378201384,1754781043373,-160.0,0.00023021,2]
[378201385,1754781043383,-215.40758176,0.00023021,2]
[378201386,1754781043392,-500.0,0.00023073,2]
[378201387,1754781043401,-500.0,0.00023073,2]
[378201388,1754781043411,-260.0,0.00023091,2]
[378201389,1754781043420,-528.5,0.00023113,2]
[378201390,1754781043430,-1765.15,0.00023113,2]
[378201391,1754781043439,-460.0,0.00023113,2]
[378201392,1754781043449,-483.4,0.00023113,2]
[378201393,1754781043459,-460.0,0.00023114,2]
[378201394,1754781043468,-536.51,0.00023114,2]
[378201395,1754781043478,-461.74,0.00023114,2]
[378201396,1754781043488,-576.66,0.00023116,2]
[378201397,1754781043497,-276.58,0.00023195,2]
[378201398,1754781043506,-460.0,0.00023287,2]
[378201399,1754781043515,-619.74,0.00023287,2]
[378201400,1754781043525,-279.5,0.00023287,2]
[378201401,1754781043535,-460.0,0.00023287,2]
[378201402,1754781043545,-460.0,0.00023287,2]
[378201403,1754781043554,-500.0,0.00023288,2]
[378201404,1754781043568,-460.0,0.00023288,2]
[378201405,1754781043578,-601.22,0.00023288,2]
[378201406,1754781043587,-467.53,0.00023288,2]
[378201407,1754781043597,-583.33,0.00023288,2]
[378201408,1754781043607,-409.0688898,0.00023288,2]
[378201409,1754781043617,-239.05,0.00023288,2]
[378201410,1754781043627,-460.0,0.00023288,2]
[378201411,1754781043636,-283.54,0.00023288,2]
[378201412,1754781043647,-540.56,0.00023288,2]
[378201413,1754781043656,-714.88,0.00023288,2]
[378201414,1754781043666,-460.0,0.00023288,2]
[378201415,1754781043675,-1765.15,0.00023387,2]
[378201416,1754781043685,-460.0,0.00023387,2]
[378201417,1754781043695,-483.4,0.00023387,2]
[378201418,1754781043705,-460.0,0.00023388,2]
[378201419,1754781043714,-536.51,0.00023388,2]
[378201420,1754781043724,-461.74,0.00023388,2]
[378201421,1754781043734,-576.66,0.0002339,2]
[378201422,1754781043744,-2766.29552628,0.00023409,2]
[378201423,1754781043754,-1000.0,0.00023421,2]
[378201424,1754781043763,-460.0,0.00023561,2]
[378201425,1754781043773,-619.74,0.00023561,2]
[378201426,1754781043782,-460.0,0.00023561,2]
[378201427,1754781043792,-460.0,0.00023562,2]
[378201428,1754781043801,-601.22,0.00023562,2]
[378201429,1754781043810,-467.53,0.00023562,2]
[378201430,1754781043820,-583.33,0.00023562,2]
[378201431,1754781043830,-460.0,0.00023562,2]
[378201432,1754781043839,-540.56,0.00023562,2]
[378201433,1754781043849,-714.88,0.00023562,2]
[378201434,1754781043858,-460.0,0.00023562,2]
[378201435,1754781043868,-1000.0,0.00023621,2]
[378201436,1754781043878,-1000.0,0.00023621,2]
[378201437,1754781043887,-360.0,0.00023639,2]
[378201438,1754781043897,-1765.15,0.00023661,2]
[378201439,1754781043907,-460.0,0.00023661,2]
[378201440,1754781043916,-483.4,0.00023661,2]
[378201441,1754781043925,-460.0,0.00023662,2]
[378201442,1754781043935,-536.51,0.00023662,2]
[378201443,1754781043945,-461.74,0.00023662,2]
[378201444,1754781043954,-576.66,0.00023664,2]
[378201445,1754781043963,-1503.67474736,0.00023762,2]
[378201446,1754781043973,-460.0,0.00023835,2]
[378201447,1754781043982,-619.74,0.00023835,2]
[378201448,1754781043992,-460.0,0.00023835,2]
[378201449,1754781044001,-460.0,0.00023836,2]
[378201450,1754781044012,-601.22,0.00023836,2]
[378201451,1754781044022,-467.53,0.00023836,2]
[378201452,1754781044033,-583.33,0.00023836,2]
[378201453,1754781044043,-460.0,0.00023836,2]
[378201454,1754781044052,-540.56,0.00023836,2]
[378201455,1754781044063,-714.88,0.00023836,2]
[378201456,1754781044072,-460.0,0.00023836,2]
[378201457,1754781044082,-1765.15,0.00023935,2]
[378201458,1754781044091,-483.4,0.00023935,2]
[378201459,1754781044100,-460.0,0.00023936,2]
[378201460,1754781044110,-536.51,0.00023936,2]
[378201461,1754781044120,-461.74,0.00023936,2]
[378201462,1754781044130,-576.66,0.00023938,2]
[378201463,1754781044140,-777.01208273,0.00023988,2]
[378201464,1754781044150,-286.65279616,0.00024109,2]
[378201465,1754781044160,-619.74,0.00024109,2]
[378201466,1754781044170,-460.0,0.00024109,2]
[378201467,1754781044179,-460.0,0.0002411,2]
[378201468,1754781044189,-601.22,0.0002411,2]
[378201469,1754781044199,-467.53,0.0002411,2]
[378201470,1754781044209,-583.33,0.0002411,2]
[378201471,1754781044218,-486.24,0.0002411,2]
[378201472,1754781044227,-540.56,0.0002411,2]
[378201473,1754781044237,-714.88,0.0002411,2]
[378201474,1754781044246,-460.0,0.0002411,2]
[378201475,1754781044255,-4328.73642757,0.00024164,2]
[378201476,1754781044265,-172.0,0.00024164,7]
[378201477,1754781044274,-1500.0,0.00024168,2]
[378201478,1754781044315,-500.0,0.00024168,2]
[378201479,1754781044325,-460.0,0.00024187,2]
[378201480,1754781044334,-151.0,0.000242,7]
[378201481,1754781044344,-1765.15,0.00024209,2]
[378201482,1754781044353,-483.4,0.00024209,2]
[378201483,1754781044362,-460.0,0.0002421,2]
[378201484,1754781044372,-536.51,0.0002421,2]
[378201485,1754781044382,-461.74,0.0002421,2]
[378201486,1754781044392,-576.66,0.00024212,2]
[378201487,1754781044401,-500.0,0.0002427,2]
[378201488,1754781044411,-200.0,0.00024309,15]
[378201489,1754781044420,-200.0,0.00024309,15]
[378201490,1754781044430,-300.0,0.00024309,15]
[378201491,1754781044440,-272.8,0.00024362,2]
[378201492,1754781044450,-619.74,0.00024383,2]
[378201493,1754781044459,-460.0,0.00024383,2]
[378201494,1754781044469,-460.0,0.00024384,2]
[378201495,1754781044478,-601.22,0.00024384,2]
[378201496,1754781044487,-467.53,0.00024384,2]
[378201497,1754781044497,-583.33,0.00024384,2]
[378201498,1754781044507,-540.56,0.00024384,2]
[378201499,1754781044517,-714.88,0.00024384,2]
[378201500,1754781044526,-460.0,0.00024384,2]
[378201501,1754781044536,-276.58,0.0002439,2]
[378201502,1754781044545,-300.0,0.00024473,2]
[378201503,1754781044555,-500.0,0.00024473,2]
[378201504,1754781044570,-1765.15,0.00024483,2]
[378201505,1754781044579,-483.4,0.00024483,2]
[378201506,1754781044589,-300.98,0.00024484,2]
[378201507,1754781044598,-536.51,0.00024484,2]
[378201508,1754781044608,-461.74,0.00024484,2]
[378201509,1754781044618,-576.66,0.00024486,2]
[378201510,1754781044628,-322074.15,0.000245,2]
[378201511,1754781044637,-947.0,0.00024643,2]
[378201512,1754781044648,-2539.06,0.00024657,4]
[378201513,1754781044658,-619.74,0.00024657,2]
[378201514,1754781044667,-460.0,0.00024657,2]
[378201515,1754781044681,-460.0,0.00024658,2]
[378201516,1754781044690,-601.22,0.00024658,2]
[378201517,1754781044700,-467.53,0.00024658,2]
[378201518,1754781044709,-583.33,0.00024658,2]
[378201519,1754781044719,-1503.67474736,0.00024658,2]
[378201520,1754781044729,-540.56,0.00024658,2]
[378201521,1754781044738,-714.88,0.00024658,2]
[378201522,1754781044748,-435.6,0.00024658,2]
[378201523,1754781044757,-947.0,0.00024664,2]
[378201524,1754781044767,-947.0,0.00024702,2]
[378201525,1754781044776,-560.0,0.00024735,2]
[378201526,1754781044785,-1765.15,0.00024757,2]
[378201527,1754781044795,-483.4,0.00024757,2]
[378201528,1754781044804,-536.51,0.00024758,2]
[378201529,1754781044813,-461.74,0.00024758,2]
[378201530,1754781044822,-576.66,0.0002476,2]
[378201531,1754781044832,-8475.40787634,0.00024831,2]
[378201532,1754781044842,-1239.74265217,0.0002487,2]
[378201533,1754781044851,-377546.16177375,0.000249,2]
[378201534,1754781044950,-791.15330908,0.000249,2]
[378201535,1754781044963,-460.0,0.000249,2]
[378201541,1754781047143,-0.0414746,0.000249,2]
[378201542,1754781047155,-1180.9,0.000249,2]
[378201543,1754781047426,-1761.70378009,0.000249,2]
[378201544,1754781047625,-369.3,0.0002449,10]
[378201545,1754781047635,-2312.68360044,0.000249,2]
[378201546,1754781047647,-141725.14320475,0.000249,2]
[378201547,1754781047659,-163613.75995129,0.000249,2]
[378201548,1754781047668,-619.87132609,0.000249,2]
[378201549,1754781047678,-619.74,0.00024931,2]
[378201550,1754781047690,-460.0,0.00024931,2]
[378201551,1754781047700,-412.21,0.00024932,2]
[378201552,1754781047709,-601.22,0.00024932,2]
[378201553,1754781047719,-63.40291462,0.00024932,2]
[378201554,1754781047732,-404.12708538,0.00024932,2]
[378201555,1754781047742,-583.33,0.00024932,2]
[378201556,1754781047752,-540.56,0.00024932,2]
[378201557,1754781047762,-12.60219092,0.00024932,2]
[378201559,1754781151706,2489.66597371,0.000199,2]
[378201560,1754781157923,-156.19990834,0.00021095,2]
[378201561,1754781160075,-296.31683831,0.00021095,2]
[378201562,1754781170952,-7.48325335,0.00021095,2]
[378201563,1754781170976,-194.42083703,0.00021095,2]
[378201564,1754781172739,-183.07825943,0.00021095,2]
[378201565,1754781176577,-82.50090354,0.00021095,2]
[378201566,1754781176606,-93.52483356,0.00021095,2]
[378201567,1754781178114,-171.54027768,0.00021095,2]
[378201568,1754781180014,-194.93488876,0.00021095,2]
[378201569,1754781180040,-291.59096172,0.00021095,2]
[378201570,1754781181567,-168.40903828,0.00021095,2]
[378201571,1754781181593,-7.07410248,0.00021095,2]
[378201572,1754781181829,32034.37351591,0.00020997,2]
[378201573,1754781181854,40000.0,0.00020997,2]
[378201574,1754781181877,40000.0,0.00020997,2]
[378201575,1754781181901,40000.0,0.00020997,2]
[378201576,1754781181926,40000.0,0.00020997,2]
[378201577,1754781181950,40000.0,0.00020997,2]
[378201578,1754781181973,40000.0,0.00020997,2]
[378201579,1754781181997,40000.0,0.00020997,2]
[378201580,1754781182020,40000.0,0.00020997,2]
[378201581,1754781182044,17965.62648409,0.00020997,2]
[378201582,1754781185562,-236.62481565,0.00021095,2]
[378201583,1754781187827,-169.73793038,0.00021095,2]
[378201584,1754781189265,-46.56315149,0.00021095,2]
[378201585,1754781189290,-117.78287361,0.00021095,2]
[378201586,1754781191882,-165.88435703,0.00021095,2]
[378201587,1754781193981,-151.68918627,0.00021095,2]
[378201588,1754781195294,5000.0,0.00021,2]
[378201589,1754781196652,-24.64358309,0.00021095,2]
[378201590,1754781196678,-182.03590214,0.00021095,2]
[378201591,1754781198821,-277.96409786,0.00021095,2]
[378201592,1754781198846,-233.95705232,0.00021096,2]
[378201593,1754781203143,5000.0,0.00021,2]
[378201594,1754781208613,-151.58592883,0.00021096,2]
[378201596,1754781210380,-74.45701885,0.00021096,2]
[378201597,1754781210407,-236.03074786,0.00021096,2]
[378201598,1754781211841,5000.0,0.00021,2]
[378201599,1754781213914,-223.96925214,0.00021096,2]
[378201600,1754781213939,-12.13503694,0.00021096,2]
[378201601,1754781216791,-323.4090878,0.00021096,2]
[378201602,1754781220066,5000.0,0.00021,2]
[378201603,1754781222724,-124.45587526,0.00021096,2]
[378201604,1754781222747,-54.91413947,0.00021096,2]
[378201605,1754781223827,666.0,0.00020939,2]
[378201606,1754781224294,-337.92314423,0.00021096,2]
[378201607,1754781224535,428.0,0.00021,2]
[378201608,1754781228194,940.37351591,0.00021,2]
[378201609,1754781228216,4059.62648409,0.00021,2]
[378201610,1754781230024,-67.1627163,0.00021096,2]
[378201611,1754781230046,-217.59298428,0.00021096,2]
[378201612,1754781235653,-207.5247482,0.00021095,2]
[378201613,1754781236131,5000.0,0.00021,2]
[378201614,1754781237806,-161.26238351,0.00021095,2]
[378201615,1754781252293,5000.0,0.00021,2]
[378201620,1754781268096,5000.0,0.00021,2]
[378201621,1754781269161,-160.0,0.00021088,2]
[378201623,1754781271852,-221.0051492,0.00021088,2]
[378201625,1754781284671,5000.0,0.00021,2]
[378201626,1754781300049,5000.0,0.00021,2]
[378201627,1754781301518,221.0051492,0.00020995,2]
[378201628,1754781317041,5000.0,0.00021,2]
[378201629,1754781332042,5000.0,0.00021,2]
[378201630,1754781337699,719.36836671,0.000199,2]
[378201631,1754781337729,2598.64779246,0.000199,2]
[378201632,1754781347518,5000.0,0.00021,2]
[378201633,1754781364035,5000.0,0.00021,2]
[378201634,1754781373704,532.040101,0.00020455,2]
[378201635,1754781374046,649.64484,0.00020462,2]
[378201636,1754781374447,222.455309,0.00020463,2]
[378201637,1754781374764,830.0069132,0.00020463,2]
[378201638,1754781378988,5000.0,0.00021,2]
[378201639,1754781393801,5000.0,0.00021,2]
[378201640,1754781409873,5000.0,0.00021,2]
[378201641,1754781425036,5000.0,0.00021,2]
[378201642,1754781433610,5000.0,0.00021,2]
[378201643,1754781441788,167.20504434,0.00021,2]
[378201644,1754781441810,4832.79495566,0.00021,2]
[378201645,1754781449599,1373.84186657,0.00021,2]
[378201646,1754781457833,5000.0,0.00021,2]
[378201647,1754781473851,5000.0,0.00021,2]
[378201648,1754781489416,5000.0,0.00021,2]
[378201649,1754781505194,5000.0,0.00021,2]
[378201650,1754781517338,3531.82420348,0.000199,2]
[378201651,1754781519900,431.682261,0.00013699,2]
[378201652,1754781520132,431.682261,0.00020187,2]
[378201653,1754781521135,5000.0,0.00021,2]
[378201655,1754781537145,4398.17445229,0.00021,2]
[378201656,1754781537167,601.82554771,0.00021,2]
[378201657,1754781549960,150.0,0.00025463,30]
[378201658,1754781550404,159.52,0.00027778,30]
[378201659,1754781552912,5000.0,0.00021,2]
[378201660,1754781568812,5000.0,0.00021,2]
[378201661,1754781584627,5000.0,0.00021,2]
[378201662,1754781592727,977.85412011,0.00020996,2]
[378201663,1754781601064,5000.0,0.00021,2]
[378201664,1754781616580,5000.0,0.00021,2]
[378201665,1754781631263,150.0,0.0002547,30]
[378201666,1754781631687,156.14,0.00027786,30]
[378201667,1754781632392,5000.0,0.00021,2]
[378201668,1754781638408,8420.32033218,0.00020145,2]
[378201669,1754781638432,16479.67966782,0.00020145,2]
[378201670,1754781649516,5000.0,0.00021,2]
[378201671,1754781664914,5000.0,0.00021,2]
[378201672,1754781672506,13520.32033218,0.00020145,2]
[378201673,1754781672529,15328.39190422,0.00020145,2]
[378201674,1754781672556,224.048957,0.00020145,2]
[378201675,1754781675993,919.829185,0.00020462,2]
[378201676,1754781676338,865.94053101,0.00020463,2]
[378201677,1754781681976,5000.0,0.00021,2]
[378201678,1754781697390,5000.0,0.00021,2]
[378201679,1754781698274,4035.1427679,0.000199,2]
[378201680,1754781715081,5000.0,0.00021,2]
[378201681,1754781718223,150.0,0.00025495,30]
[378201682,1754781718628,152.8,0.00027813,30]
[378201683,1754781730960,3626.64665487,0.00021,2]
[378201684,1754781730984,1373.35334513,0.00021,2]
[378201685,1754781746338,5000.0,0.00021,2]
[378201686,1754781762053,5000.0,0.00021,2]
[378201687,1754781768107,800.0,0.00025,30]
[378201688,1754781777122,10000.0,0.00020145,2]
[378201689,1754781777603,5000.0,0.00021,2]
[378201690,1754781793310,5000.0,0.00021,2]
[378201691,1754781799504,150.0,0.00025016,30]
[378201692,1754781799942,150.0,0.0002729,30]
[378201693,1754781809616,5000.0,0.00021,2]
[378201694,1754781825789,3626.64665487,0.00021,2]
[378201695,1754781825813,1373.35334513,0.00021,2]
[378201696,1754781840993,5000.0,0.00021,2]
[378201697,1754781847845,1000.0,0.00020145,2]
[378201698,1754781856919,5000.0,0.00021,2]
[378201699,1754781878554,3900.63800897,0.000199,2]
[378201700,1754781885416,150.0,0.00025089,30]
[378201701,1754781885849,150.0,0.0002737,30]
[378201702,1754781889311,887.78684463,0.00020996,2]
[378201703,1754781902141,22838.22180127,0.00020145,2]
[378201704,1754781902164,40000.0,0.00020145,2]
[378201705,1754781902190,16459.98629573,0.00020145,2]
[378201707,1754781919156,507.727896,0.0002012,2]
[378201709,1754781967734,150.0,0.00025243,30]
[378201710,1754781968652,150.0,0.00027538,30]
[378201711,1754781969660,2000.0,0.00028,30]
[378201712,1754781977534,502.680241,0.00020462,2]
[378201713,1754781977983,360.20711661,0.00020463,2]
[378201714,1754781984077,178.1014109,0.0002012,2]
[378201715,1754782050602,150.0,0.00025382,30]
[378201716,1754782051075,150.0,0.00027689,30]
[378201718,1754782059900,3770.61674213,0.000199,2]
[378201721,1754782119902,280.55603375,0.0002045,30]
[378201722,1754782135237,150.0,0.00025154,30]
[378201723,1754782135816,150.0,0.0002744,30]
[378201727,1754782167951,1776.71778337,0.000189,2]
[378201731,1754782193446,776.81348906,0.00020995,2]
[378201732,1754782221919,150.0,0.00025539,30]
[378201733,1754782222353,150.0,0.00027861,30]
[378201749,1754782232118,-160.0,0.00021093,2]
[378201751,1754782232129,-300.0,0.00021093,2]
[378201753,1754782232138,-300.0,0.00021093,2]
[378201754,1754782232148,-1200.0,0.00021093,2]
[378201756,1754782232157,-498.0,0.00021094,2]
[378201758,1754782232166,-521.74,0.00021094,2]
[378201760,1754782232175,-460.0,0.00021094,2]
[378201761,1754782232185,-460.0,0.00021094,2]
[378201763,1754782232194,-460.0,0.00021094,2]
[378201764,1754782232203,-460.0,0.00021094,2]
[378201765,1754782232213,-460.0,0.00021094,2]
[378201766,1754782232222,-460.0,0.00021094,2]
[378201767,1754782232231,-460.0,0.00021094,2]
[378201768,1754782232240,-460.0,0.00021094,2]
[378201769,1754782232249,-460.0,0.00021094,2]
[378201770,1754782232259,-460.0,0.00021094,2]
[378201771,1754782232268,-460.0,0.00021094,2]
[378201773,1754782232278,-460.0,0.00021094,2]
[378201774,1754782232287,-460.0,0.00021094,2]
[378201775,1754782232296,-460.0,0.00021094,2]
[378201777,1754782232305,-358.71105646,0.00021094,2]
[378201779,1754782232314,-460.0,0.00021094,2]
[378201781,1754782232323,-460.0,0.00021094,2]
[378201783,1754782232333,-460.0,0.00021095,2]
[378201785,1754782232342,-460.0,0.00021095,2]
[378201787,1754782232351,-460.0,0.00021095,2]
[378201789,1754782232360,-460.0,0.00021095,2]
[378201791,1754782232369,-228.93173036,0.00021095,2]
[378201793,1754782232378,-460.0,0.00021095,2]
[378201795,1754782232387,-460.0,0.00021095,2]
[378201797,1754782232397,-460.0,0.00021095,2]
[378201799,1754782232407,-460.0,0.00021095,2]
[378201801,1754782232416,-460.0,0.00021095,2]
[378201803,1754782232425,-460.0,0.00021095,2]
[378201805,1754782232434,-460.0,0.00021095,2]
[378201807,1754782232443,-460.0,0.00021095,2]
[378201809,1754782232453,-460.0,0.00021095,2]
[378201811,1754782232462,-460.0,0.00021095,2]
[378201813,1754782232471,-460.0,0.00021095,2]
[378201815,1754782232480,-460.0,0.00021095,2]
[378201817,1754782232490,-460.0,0.00021095,2]
[378201818,1754782232499,-460.0,0.00021095,2]
[378201819,1754782232508,-460.0,0.00021095,2]
[378201820,1754782232517,-460.0,0.00021095,2]
[378201822,1754782232527,-460.0,0.00021095,2]
[378201824,1754782232536,-460.0,0.00021095,2]
[378201826,1754782232545,-460.0,0.00021095,2]
[378201828,1754782232555,-460.0,0.00021095,2]
[378201830,1754782232563,-460.0,0.00021095,2]
[378201832,1754782232572,-460.0,0.00021095,2]
[378201834,1754782232582,-460.0,0.00021095,2]
[378201836,1754782232591,-460.0,0.00021095,2]
[378201838,1754782232600,-460.0,0.00021095,2]
[378201840,1754782232609,-460.0,0.00021095,2]
[378201842,1754782232618,-460.0,0.00021095,2]
[378201844,1754782232627,-460.0,0.00021095,2]
[378201846,1754782232636,-460.0,0.00021095,2]
[378201847,1754782232645,-460.0,0.00021095,2]
[378201850,1754782232654,-460.0,0.00021095,2]
[378201851,1754782232664,-460.0,0.00021095,2]
[378201854,1754782232673,-460.0,0.00021095,2]
[378201855,1754782232682,-460.0,0.00021095,2]
[378201857,1754782232691,-460.0,0.00021095,2]
[378201859,1754782232701,-460.0,0.00021095,2]
[378201861,1754782232710,-460.0,0.00021095,2]
[378201863,1754782232719,-463.22136227,0.00021095,2]
[378201865,1754782232728,-435.6,0.00021095,2]
[378201867,1754782232737,-460.0,0.00021095,2]
[378201869,1754782232746,-467.7913872,0.00021095,2]
[378201871,1754782232755,-460.0,0.00021095,2]
[378201873,1754782232765,-460.0,0.00021095,2]
[378201875,1754782232774,-460.0,0.00021095,2]
[378201877,1754782232785,-460.0,0.00021095,2]
[378201879,1754782232794,-460.0,0.00021095,2]
[378201881,1754782232803,-460.0,0.00021095,2]
[378201883,1754782232812,-460.0,0.00021095,2]
[378201885,1754782232822,-460.0,0.00021095,2]
[378201887,1754782232831,-460.0,0.00021095,2]
[378201889,1754782232840,-463.01317425,0.00021095,2]
[378201891,1754782232850,-460.0,0.00021095,2]
[378201893,1754782232859,-460.0,0.00021095,2]
[378201895,1754782232868,-460.0,0.00021095,2]
[378201897,1754782232878,-1931.28285704,0.00021095,2]
[378201899,1754782232887,-460.0,0.00021096,2]
[378201901,1754782232896,-460.0,0.00021096,2]
[378201903,1754782232907,-460.0,0.00021096,2]
[378201905,1754782232918,-391.17162531,0.00021096,2]
[378201907,1754782232927,-460.0,0.00021096,2]
[378201909,1754782232937,-477.02278304,0.00021096,2]
[378201911,1754782232947,-229.22483265,0.00021096,2]
[378201913,1754782232957,-265.75958267,0.00021096,2]
[378201915,1754782232966,-460.0,0.00021096,2]
[378201917,1754782232975,-460.0,0.00021096,2]
[378201919,1754782232986,-460.0,0.00021096,2]
[378201921,1754782232995,-343.51478512,0.00021096,2]
[378201923,1754782233004,-460.0,0.00021096,2]
[378201925,1754782233013,-460.0,0.00021096,2]
[378201927,1754782233023,-460.0,0.00021096,2]
[378201929,1754782233032,-342.56178904,0.00021096,2]
[378201932,1754782233045,-117.43821096,0.00021096,2]
[378201934,1754782233055,-467.86708639,0.00021096,2]
[378201936,1754782233064,-460.0,0.00021096,2]
[378201938,1754782233073,-460.0,0.00021096,2]
[378201939,1754782233082,-460.0,0.00021096,2]
[378201941,1754782233092,-460.0,0.00021096,2]
[378201943,1754782233101,-460.0,0.00021096,2]
[378201945,1754782233110,-460.0,0.00021096,2]
[378201947,1754782233119,-460.0,0.00021096,2]
[378201949,1754782233129,-460.0,0.00021096,2]
[378201951,1754782233138,-460.0,0.00021096,2]
[378201953,1754782233148,-460.0,0.00021096,2]
[378201955,1754782233157,-542.44269811,0.00021096,2]
[378201957,1754782233167,-392.97009569,0.00021096,2]
[378201961,1754782233190,-67.02990431,0.00021096,2]
[378201963,1754782233199,-460.0,0.00021096,2]
[378201965,1754782233208,-460.0,0.00021096,2]
[378201967,1754782233218,-460.0,0.00021096,2]
[378201969,1754782233227,-460.0,0.00021096,2]
[378201971,1754782233236,-460.0,0.00021096,2]
[378201973,1754782233245,-460.0,0.00021096,2]
[378201975,1754782233255,-460.0,0.00021096,2]
[378201977,1754782233264,-460.0,0.00021096,2]
[378201979,1754782233273,-460.0,0.00021096,2]
[378201981,1754782233283,-460.0,0.00021096,2]
[378201983,1754782233292,-460.0,0.00021096,2]
[378201985,1754782233301,-460.0,0.00021096,2]
[378201987,1754782233311,-460.0,0.00021096,2]
[378201989,1754782233320,-460.0,0.00021096,2]
[378201991,1754782233330,-496.73,0.00021096,2]
[378201992,1754782233339,-460.0,0.00021096,2]
[378201994,1754782233348,-333.78118104,0.00021096,2]
[378201996,1754782233357,-460.0,0.00021096,2]
[378201998,1754782233367,-464.92973893,0.00021096,2]
[378202000,1754782233376,-312.27406109,0.00021096,2]
[378202003,1754782233386,-460.0,0.00021096,2]
[378202005,1754782233396,-460.0,0.00021096,2]
[378202007,1754782233405,-460.0,0.00021096,2]
[378202008,1754782233415,-460.0,0.00021096,2]
[378202010,1754782233424,-809.02,0.00021096,2]
[378202012,1754782233433,-460.0,0.00021096,2]
[378202014,1754782233442,-460.0,0.00021096,2]
[378202016,1754782233451,-460.0,0.00021096,2]
[378202018,1754782233461,-460.0,0.00021096,2]
[378202020,1754782233471,-460.0,0.00021096,2]
[378202022,1754782233480,-460.0,0.00021096,2]
[378202025,1754782233490,-488.24,0.00021096,2]
[378202026,1754782233500,-460.0,0.00021096,2]
[378202029,1754782233509,-460.0,0.00021096,2]
[378202030,1754782233519,-460.0,0.00021096,2]
[378202033,1754782233529,-460.0,0.00021193,2]
[378202035,1754782233538,-460.0,0.00021368,2]
[378202036,1754782233548,-460.0,0.00021368,2]
[378202038,1754782233557,-460.0,0.00021368,2]
[378202040,1754782233567,-554.05,0.00021368,2]
[378202043,1754782233577,-460.0,0.00021368,2]
[378202044,1754782233587,-460.0,0.00021368,2]
[378202047,1754782233596,-460.0,0.00021368,2]
[378202048,1754782233605,-460.0,0.00021369,2]
[378202051,1754782233615,-395.13834564,0.00021369,2]
[378202052,1754782233624,-460.0,0.00021369,2]
[378202054,1754782233633,-460.0,0.00021369,2]
[378202056,1754782233642,-461.69525378,0.00021369,2]